Workbook

Sheet Instructions
E3: LEED v4 Purchasing Calculator
E5: Step 1.
E6: Enable macros
E8: Step 2.
E9: Select units | H9: miles
E11: Step 3.
E12: Provide the actual cost for the following product and material types, as applicable:
E14: For projects attempting MR Credit Purchasing - Ongoing
E16: Total ongoing consumables cost | H16: 4238.47
E18: Total electric-powered equipment cost | H18: 12236
E20: Total food and beverage cost (O+M: Schools and O+M: Hospitality Only) | H20: 2495.91
E22: For projects attempting MR Credit Purchasing - Facility Maintenance and Renovation
E24: Total products and materials cost | H24: 0
E26: Total furniture cost | H26: 0
E28: Total materials cost for the LEED project: | H28: =SUM(H16:H26) -> 18970.38
E30: Step 4.
E31: For projects attempting MR Credit Purchasing - Ongoing
E32: Complete the Ongoing Consumables and Electric-Powered Equipment sections on the Ongoing tab.
E34: For projects attempting MR Credit Purchasing - Facility Maintenance and Renovation
E35: Complete the Facility Maintenance tab.
E37: For projects attempting MR Credit Purchasing - Lamps
E38: Complete the Lamps tab.
E40: Step 5.
E41: Use the information on the Summary tab complete the LEED Credit Form.
E43: For Existing Buildings: Schools or Hospitality projects, use the information on Summary - Sch or Hos tab to complete the LEED Credit Form.
K46: MaterialTyp
K47: Paints and coatings wet-applied on site
K48: Adhesives and sealants wet-applied on site
K49: Flooring
K50: Composite wood
K51: Ceilings, walls, thermal, and acoustic insulation
K52: Salvaged and reused architectural millwork
K53: Other

Sheet Ongoing
B2: Ongoing
B5: Material Information | F5: Ongoing Consumables | AA5: Electric-Powered Equipment
B6: Description of Material | C6: Manufacturer or Vendor Name | D6: Material Cost ($) | F6: Postconsumer Recycled Content | J6: Extended Use | M6: Sustainable Agriculture | P6: Local Sourcing | S6: Bio-Based Materials | V6: Paper and Wood Products | Y6: Total Sustainable Criteria Value of Ongoing Consumables ($) | AA6: Sustainable Label Name | AB6: Sustainable Criteria Value ($)
F7: Percent Post-Consumer (%) | G7: Meets levels in EPA CPG | H7: Sustainable Criteria Value ($) | J7: Rechargeable or Remanufactured | K7: Sustainable Criteria Value ($) | M7: Sustainable Label Name | N7: Sustainable Criteria Value ($) | P7: =IF(Instructions!H9="miles","Percent of Product Sourced Within 100 mi of site (%)", "Percent of Product Sourced Within 160 km of site (%)") -> Percent of Product Sourced Within 100 mi of site (%) | Q7: Sustainable Criteria Value ($) | S7: Percent of Product SAN Certified (%) | T7: Sustainable Criteria Value ($) | V7: Percent of Product FSC Certified (%) | W7: Sustainable Criteria Value ($)
A8: =IF(D8>0,0,0) -> 0 | B8: B24BWL LED Monitor | C8: Acer | D8: 2750 | H8: =IF(AND(F8>0,OR(G8="Yes",G8="N/A")),F8*D8,0) -> 0 | K8: =IF(J8="Yes", D8, 0) -> 0 | N8: =IF(AND(M8>0, M8<>"none"),D8,0) -> 0 | Q8: =IF(P8>0,D8*P8,0) -> 0 | T8: =IF(S8>0,S8*D8,0) -> 0 | W8: =IF(V8>0,V8*D8,0) -> 0 | Y8: =SUM(H8,K8,N8,Q8,T8,W8) -> 0 | AA8: ENERGY STAR | AB8: =IF(OR(AA8="EPEAT silver or better",AA8="ENERGY STAR"),D8,0) -> 2750
A9: =IF(D9>0,0,0) -> 0 | B9: 3010 Optiplex Standard PSU | C9: Dell | D9: 4890 | H9: =IF(AND(F9>0,OR(G9="Yes",G9="N/A")),F9*D9,0) -> 0 | K9: =IF(J9="Yes", D9, 0) -> 0 | N9: =IF(AND(M9>0, M9<>"none"),D9,0) -> 0 | Q9: =IF(P9>0,D9*P9,0) -> 0 | T9: 0 | W9: 0 | Y9: 0 | AA9: ENERGY STAR | AB9: =IF(OR(AA9="EPEAT silver or better",AA9="ENERGY STAR"),D9,0) -> 4890
A10: 0 | B10: EliteBook 840 G1-14"-Core i5 4200U-Windows 7 Pro 64-Bit | C10: HP | D10: 4596 | H10: 0 | K10: =IF(J10="Yes", D10, 0) -> 0 | N10: 0 | Q10: 0 | T10: 0 | W10: 0 | Y10: 0 | AA10: ENERGY STAR | AB10: 4596
A11: 0 | B11: Choice Organic Lemon Lavender Mint (1 box (16 tea bags)) | C11: Choice Organics | D11: 24.95 | H11: 0 | K11: 0 | M11: USDA Organic | N11: 24.95 | Q11: 0 | T11: 0 | W11: 0 | Y11: 24.95 | AB11: 0
A12: 0 | B12: Choice Organic Irish Breakfast (1 box (16 tea bags)) | C12: Choice Organics | D12: 9.98 | H12: 0 | K12: 0 | M12: USDA Organic | N12: 9.98 | Q12: 0 | T12: 0 | W12: 0 | Y12: 9.98 | AB12: 0
A13: =IF(D13>0,0,0) -> 0 | B13: Choice Organic Ginger (1 box (16 tea bags)) | C13: Choice Organics | D13: 24.95 | H13: =IF(AND(F13>0,OR(G13="Yes",G13="N/A")),F13*D13,0) -> 0 | K13: =IF(J13="Yes", D13, 0) -> 0 | M13: USDA Organic | N13: =IF(AND(M13>0, M13<>"none"),D13,0) -> 24.95 | Q13: =IF(P13>0,D13*P13,0) -> 0 | T13: =IF(S13>0,S13*D13,0) -> 0 | W13: =IF(V13>0,V13*D13,0) -> 0 | Y13: =SUM(H13,K13,N13,Q13,T13,W13) -> 24.95 | AB13: =IF(OR(AA13="EPEAT silver or better",AA13="ENERGY STAR"),D13,0) -> 0
A14: 0 | B14: Choice Organic White Peony (1 box (16 tea bags)) | C14: Choice Organics | D14: 19.96 | H14: 0 | K14: 0 | M14: USDA Organic | N14: 19.96 | Q14: 0 | T14: 0 | W14: 0 | Y14: 19.96 | AB14: 0
A15: 0 | B15: Choice Organic Peppermint (1 box (16 tea bags)) | C15: Choice Organics | D15: 9.98 | H15: 0 | K15: 0 | M15: USDA Organic | N15: 9.98 | Q15: 0 | T15: 0 | W15: 0 | Y15: 9.98 | AB15: 0
A16: 0 | B16: Choice Organic Masala Chai (1 box (16 tea bags)) | C16: Choice Organics | D16: 19.96 | H16: 0 | K16: 0 | M16: USDA Organic | N16: 19.96 | Q16: 0 | T16: 0 | W16: 0 | Y16: 19.96 | AB16: 0
A17: 0 | B17: Choice Organic Green Moroccan Mint (1 box (16 tea bags)) | C17: Choice Organics | D17: 19.96 | H17: 0 | K17: 0 | M17: USDA Organic | N17: 19.96 | Q17: 0 | T17: 0 | W17: 0 | Y17: 19.96 | AB17: 0
A18: 0 | B18: Choice Organic Genmaicha (6-pack (6 x 16 tea bags)) | C18: Choice Organics | D18: 27.34 | H18: 0 | K18: 0 | M18: USDA Organic | N18: 27.34 | Q18: 0 | T18: 0 | W18: 0 | Y18: 27.34 | AB18: 0
A19: 0 | B19: Choice Organic Earl Grey (1 box (16 tea bags)) | C19: Choice Organics | D19: 9.98 | H19: 0 | K19: 0 | M19: USDA Organic | N19: 9.98 | Q19: 0 | T19: 0 | W19: 0 | Y19: 9.98 | AB19: 0
A20: 0 | B20: Choice Organic Decaf English Breakfast 6pk | C20: Choice Organics | D20: 27.54 | H20: 0 | K20: 0 | M20: USDA Organic | N20: 27.54 | Q20: 0 | T20: 0 | W20: 0 | Y20: 27.54 | AB20: 0
A21: 0 | B21: Choice Organic Rooibos 6pk | C21: Choice Organics | D21: 27.54 | H21: 0 | K21: 0 | M21: USDA Organic | N21: 27.54 | Q21: 0 | T21: 0 | W21: 0 | Y21: 27.54 | AB21: 0
A22: 0 | B22: Choice Organic Classic Green 6pk | C22: Choice Organics | D22: 27.54 | H22: 0 | K22: 0 | M22: USDA Organic | N22: 27.54 | Q22: 0 | T22: 0 | W22: 0 | Y22: 27.54 | AB22: 0
A23: 0 | B23: Choice Organic Decaf Green 6pk | C23: Choice Organics | D23: 27.54 | H23: 0 | K23: 0 | M23: USDA Organic | N23: 27.54 | Q23: 0 | T23: 0 | W23: 0 | Y23: 27.54 | AB23: 0
A24: 0 | B24: Kraft Roll Paper | C24: Blaisdells | D24: 5.29 | F24: 1 | G24: Yes | H24: 5.29 | K24: 0 | N24: 0 | Q24: 0 | T24: 0 | W24: 0 | Y24: 5.29 | AB24: 0
A25: 0 | B25: Recycled Monthly Planner | C25: Blaisdells | D25: 19.49 | F25: 1 | G25: Yes | H25: 19.49 | K25: 0 | N25: 0 | Q25: 0 | T25: 0 | W25: 0 | Y25: 19.49 | AB25: 0
A26: 0 | B26: Sugarcane notebook | C26: Blaisdells | D26: 32.9 | F26: 1 | G26: Yes | H26: 32.9 | K26: 0 | N26: 0 | Q26: 0 | T26: 0 | W26: 0 | Y26: 32.9 | AB26: 0
A27: 0 | B27: Paper Towels 15/box | C27: Blaisdells | D27: 37.98 | F27: 1 | G27: Yes | H27: 37.98 | K27: 0 | N27: 0 | Q27: 0 | T27: 0 | W27: 0 | Y27: 37.98 | AB27: 0
A28: 0 | B28: Twin Pocket Folders 25/bx | C28: Blaisdells | D28: 91.74 | F28: 1 | G28: Yes | H28: 91.74 | K28: 0 | N28: 0 | Q28: 0 | T28: 0 | W28: 0 | Y28: 91.74 | AB28: 0
A29: 0 | B29: Copy Paper 10 reems/box | C29: Blaisdells | D29: 911.2 | F29: 1 | G29: Yes | H29: 911.2 | K29: 0 | N29: 0 | Q29: 0 | T29: 0 | V29: 1 | W29: 911.2 | Y29: 1822.4 | AB29: 0
A30: 0 | B30: Clipboard | C30: Blaisdells | D30: 9.98 | F30: 0.9 | G30: Yes | H30: 8.982 | K30: 0 | N30: 0 | Q30: 0 | T30: 0 | W30: 0 | Y30: 8.982 | AB30: 0
A31: 0 | B31: Bottle gel pen 2/pk black | C31: Blaisdells | D31: 13.96 | F31: 0.89 | G31: Yes | H31: 12.4244 | K31: 0 | N31: 0 | Q31: 0 | T31: 0 | W31: 0 | Y31: 12.4244 | AB31: 0
A32: 0 | B32: Bottle gel pen 3/pk blue | C32: Blaisdells | D32: 16.47 | F32: 0.89 | G32: Yes | H32: 14.6583 | K32: 0 | N32: 0 | Q32: 0 | T32: 0 | W32: 0 | Y32: 14.6583 | AB32: 0
A33: 0 | B33: Bottle gel pen | C33: Blaisdells | D33: 16.9 | F33: 0.89 | G33: Yes | H33: 15.041 | K33: 0 | N33: 0 | Q33: 0 | T33: 0 | W33: 0 | Y33: 15.041 | AB33: 0
A34: 0 | B34: Bottle ballpoint pen 12/pk | C34: Blaisdells | D34: 13.49 | F34: 0.83 | G34: Yes | H34: 11.1967 | K34: 0 | N34: 0 | Q34: 0 | T34: 0 | W34: 0 | Y34: 11.1967 | AB34: 0
A35: 0 | B35: Post its 3x3 12/pk | C35: Blaisdells | D35: 59.94 | F35: 0.8 | G35: Yes | H35: 47.952 | K35: 0 | N35: 0 | Q35: 0 | T35: 0 | W35: 0 | Y35: 47.952 | AB35: 0
A36: 0 | B36: Toner 53A Remanufactured | C36: Blaisdells | D36: 147.98 | F36: 0.8 | G36: Yes | H36: 118.384 | K36: 0 | N36: 0 | Q36: 0 | T36: 0 | W36: 0 | Y36: 118.384 | AB36: 0
A37: 0 | B37: Add Rolls 12/pk | C37: Blaisdells | D37: 17.58 | F37: 0.6 | G37: Yes | H37: 10.548 | K37: 0 | N37: 0 | Q37: 0 | T37: 0 | W37: 0 | Y37: 10.548 | AB37: 0
A38: =IF(D38>0,0,0) -> 0 | B38: Napkins 250/pk | C38: Blaisdells | D38: 51.9 | F38: 0.5 | G38: Yes | H38: =IF(AND(F38>0,OR(G38="Yes",G38="N/A")),F38*D38,0) -> 25.95 | K38: =IF(J38="Yes", D38, 0) -> 0 | N38: =IF(AND(M38>0, M38<>"none"),D38,0) -> 0 | Q38: =IF(P38>0,D38*P38,0) -> 0 | T38: =IF(S38>0,S38*D38,0) -> 0 | W38: =IF(V38>0,V38*D38,0) -> 0 | Y38: =SUM(H38,K38,N38,Q38,T38,W38) -> 25.95 | AB38: =IF(OR(AA38="EPEAT silver or better",AA38="ENERGY STAR"),D38,0) -> 0
A39: 0 | B39: Toner 96A | C39: Blaisdells | D39: 257.98 | F39: 0.41 | G39: Yes | H39: 105.7718 | K39: 0 | N39: 0 | Q39: 0 | T39: 0 | W39: 0 | Y39: 105.7718 | AB39: 0
A40: 0 | B40: Note book spiral 11x8-1/2 | C40: Blaisdells | D40: 61.9 | F40: 0.4 | G40: Yes | H40: 24.76 | K40: 0 | N40: 0 | Q40: 0 | T40: 0 | W40: 0 | Y40: 24.76 | AB40: 0
A41: 0 | B41: Wired Notebook 5x8 | C41: Blaisdells | D41: 91.8 | F41: 0.4 | G41: Yes | H41: 36.72 | K41: 0 | N41: 0 | Q41: 0 | T41: 0 | W41: 0 | Y41: 36.72 | AB41: 0
A42: 0 | B42: Note book pad lgl 12/pk | C42: Blaisdells | D42: 199.95 | F42: 0.4 | G42: Yes | H42: 79.98 | K42: 0 | N42: 0 | Q42: 0 | T42: 0 | W42: 0 | Y42: 79.98 | AB42: 0
A43: 0 | B43: 1" Binder | C43: Blaisdells | D43: 68.77 | F43: 0.39 | G43: Yes | H43: 26.8203 | K43: 0 | N43: 0 | Q43: 0 | T43: 0 | W43: 0 | Y43: 26.8203 | AB43: 0
A44: 0 | B44: Perf Top Pad 5x8 12/pk | C44: Blaisdells | D44: 13.99 | F44: 0.35 | G44: Yes | H44: 4.8965 | K44: 0 | N44: 0 | Q44: 0 | T44: 0 | W44: 0 | Y44: 4.8965 | AB44: 0
A45: 0 | B45: Montly Planner | C45: Blaisdells | D45: 16.49 | F45: 0.3 | G45: Yes | H45: 4.947 | K45: 0 | N45: 0 | Q45: 0 | T45: 0 | W45: 0 | Y45: 4.947 | AB45: 0
A46: 0 | B46: Tab Dividers | C46: Blaisdells | D46: 29.95 | F46: 0.3 | G46: Yes | H46: 8.985 | K46: 0 | N46: 0 | Q46: 0 | T46: 0 | W46: 0 | Y46: 8.985 | AB46: 0
A47: 0 | B47: Card Stock | C47: Blaisdells | D47: 57.45 | F47: 0.3 | G47: Yes | H47: 17.235 | K47: 0 | N47: 0 | Q47: 0 | T47: 0 | W47: 0 | Y47: 17.235 | AB47: 0
A48: 0 | B48: Copy Paper 8 1/2x14 10/pk | C48: Blaisdells | D48: 57.95 | F48: 0.3 | G48: Yes | H48: 17.385 | K48: 0 | N48: 0 | Q48: 0 | T48: 0 | W48: 0 | Y48: 17.385 | AB48: 0
A49: 0 | B49: Pressboard folders 6 section 10/bx | C49: Blaisdells | D49: 91.98 | F49: 0.3 | G49: Yes | H49: 27.594 | K49: 0 | N49: 0 | Q49: 0 | T49: 0 | W49: 0 | Y49: 27.594 | AB49: 0
A50: 0 | B50: Self stick easel pad 2/pk | C50: Blaisdells | D50: 115.98 | F50: 0.3 | G50: Yes | H50: 34.794 | K50: 0 | N50: 0 | Q50: 0 | T50: 0 | W50: 0 | Y50: 34.794 | AB50: 0
A51: 0 | B51: Post its lined 4x6 5/pk | C51: Blaisdells | D51: 131.92 | F51: 0.3 | G51: Yes | H51: 39.576 | K51: 0 | N51: 0 | Q51: 0 | T51: 0 | W51: 0 | Y51: 39.576 | AB51: 0
A52: 0 | B52: Drink cups/50 | C52: Blaisdells | D52: 10.49 | F52: 0.24 | G52: Yes | H52: 2.5176 | K52: 0 | N52: 0 | Q52: 0 | T52: 0 | W52: 0 | Y52: 2.5176 | AB52: 0
A53: 0 | B53: Classification folders 10/bx | C53: Blaisdells | D53: 77.99 | F53: 0.2 | G53: Yes | H53: 15.598 | K53: 0 | N53: 0 | Q53: 0 | T53: 0 | W53: 0 | Y53: 15.598 | AB53: 0
A54: 0 | B54: Paper Towel 12/ct | C54: Blaisdells | D54: 119.97 | F54: 1 | G54: Yes | H54: 119.97 | K54: 0 | N54: 0 | Q54: 0 | T54: 0 | W54: 0 | Y54: 119.97 | AB54: 0
A55: 0 | B55: Note Pro Notebook | C55: Blaisdells | D55: 25.98 | F55: 0.5 | G55: Yes | H55: 12.99 | K55: 0 | N55: 0 | Q55: 0 | T55: 0 | W55: 0 | Y55: 12.99 | AB55: 0
A56: 0 | H56: 0 | K56: 0 | N56: 0 | Q56: 0 | T56: 0 | W56: 0 | Y56: 0 | AB56: 0
A57: 0 | H57: 0 | K57: 0 | N57: 0 | Q57: 0 | T57: 0 | W57: 0 | Y57: 0 | AB57: 0
A58: 0 | H58: 0 | K58: 0 | N58: 0 | Q58: 0 | T58: 0 | W58: 0 | Y58: 0 | AB58: 0
A59: 0 | H59: 0 | K59: 0 | N59: 0 | Q59: 0 | T59: 0 | W59: 0 | Y59: 0 | AB59: 0
A60: 0 | H60: 0 | K60: 0 | N60: 0 | Q60: 0 | T60: 0 | W60: 0 | Y60: 0 | AB60: 0
A61: 0 | H61: 0 | K61: 0 | N61: 0 | Q61: 0 | T61: 0 | W61: 0 | Y61: 0 | AB61: 0
A62: 0 | H62: 0 | K62: 0 | N62: 0 | Q62: 0 | T62: 0 | W62: 0 | Y62: 0 | AB62: 0
A63: 0 | H63: 0 | K63: 0 | N63: 0 | Q63: 0 | T63: 0 | W63: 0 | Y63: 0 | AB63: 0
A64: 0 | H64: 0 | K64: 0 | N64: 0 | Q64: 0 | T64: 0 | W64: 0 | Y64: 0 | AB64: 0
A65: 0 | H65: 0 | K65: 0 | N65: 0 | Q65: 0 | T65: 0 | W65: 0 | Y65: 0 | AB65: 0
A66: 0 | H66: 0 | K66: 0 | N66: 0 | Q66: 0 | T66: 0 | W66: 0 | Y66: 0 | AB66: 0
A67: 0 | H67: 0 | K67: 0 | N67: 0 | Q67: 0 | T67: 0 | W67: 0 | Y67: 0 | AB67: 0
A68: 0 | H68: 0 | K68: 0 | N68: 0 | Q68: 0 | T68: 0 | W68: 0 | Y68: 0 | AB68: 0
A69: 0 | H69: 0 | K69: 0 | N69: 0 | Q69: 0 | T69: 0 | W69: 0 | Y69: 0 | AB69: 0
A70: 0 | H70: 0 | K70: 0 | N70: 0 | Q70: 0 | T70: 0 | W70: 0 | Y70: 0 | AB70: 0
A71: 0 | H71: 0 | K71: 0 | N71: 0 | Q71: 0 | T71: 0 | W71: 0 | Y71: 0 | AB71: 0
A72: 0 | H72: 0 | K72: 0 | N72: 0 | Q72: 0 | T72: 0 | W72: 0 | Y72: 0 | AB72: 0
A73: 0 | H73: 0 | K73: 0 | N73: 0 | Q73: 0 | T73: 0 | W73: 0 | Y73: 0 | AB73: 0
A74: 0 | H74: 0 | K74: 0 | N74: 0 | Q74: 0 | T74: 0 | W74: 0 | Y74: 0 | AB74: 0
A75: 0 | H75: 0 | K75: 0 | N75: 0 | Q75: 0 | T75: 0 | W75: 0 | Y75: 0 | AB75: 0
A76: 0 | H76: 0 | K76: 0 | N76: 0 | Q76: 0 | T76: 0 | W76: 0 | Y76: 0 | AB76: 0
A77: 0 | H77: 0 | K77: 0 | N77: 0 | Q77: 0 | T77: 0 | W77: 0 | Y77: 0 | AB77: 0
H78: =IF(AND(F78>0,OR(G78="Yes",G78="N/A")),F78*D78,0) -> 0 | K78: =IF(J78="Yes", D78, 0) -> 0 | N78: =IF(AND(M78>0, M78<>"none"),D78,0) -> 0 | Q78: =IF(P78>0,D78*P78,0) -> 0 | T78: =IF(S78>0,S78*D78,0) -> 0 | W78: =IF(V78>0,V78*D78,0) -> 0 | Y78: =SUM(H78,K78,N78,Q78,T78,W78) -> 0 | AB78: =IF(OR(AA78="EPEAT silver or better",AA78="ENERGY STAR"),D78,0) -> 0
H79: 0 | K79: 0 | N79: 0 | Q79: 0 | T79: 0 | W79: 0 | Y79: 0 | AB79: 0
B80: Total ongoing consumables cost ($) | D80: =SUM(D8:D79) -> 15390.56 | F80: Recycled content value | H80: =SUM(H8:H79) -> 1944.2766 | J80: Extended use value | K80: =SUM(K8:K79) -> 0 | M80: Sustainable agriculture value | N80: =SUM(N8:N79) -> 277.22 | P80: Local sourcing value | Q80: =SUM(Q8:Q79) -> 0 | S80: Bio-based value | T80: =SUM(T8:T79) -> 0 | V80: Paper and wood products value | W80: =SUM(W8:W79) -> 911.2 | Y80: Total | AA80: Sustainable criteria value of electric-powered equipment | AB80: =SUM(AB8:AB79) -> 12236
Y81: =SUM(Y8:Y79) -> 3132.6966

Sheet Facility Maintenance
B2: Facility Maintenance and Renovation
B5: Material Information | G5: Recycled Content | K5: Wood Products | N5: Bio-Based Materials | Q5: Materials Reuse | T5: Extended Producer Responsibility | X5: Ingredient Reporting | AA5: Supply Chain Optimization | AD5: Low emissions of volatile organic compounds and formaldehyde | AH5: =IF(Instructions!H9="miles","Regional Multiplier: Percent Within 100 mi (%)","Regional Multiplier: Percent Within 160 km (%)") -> Regional Multiplier: Percent Within 100 mi (%) | AI5: Sustainable Criteria Value Subtotal | AJ5: Total Weighted Sustainable Criteria Value
B6: Material Type | C6: Description of Material | D6: Manufacturer or Vendor Name | E6: Material Cost ($) | G6: Percent Post-Consumer (%) | H6: Percent Pre-Consumer (%) | I6: Sustainable Criteria Value ($) | K6: Percent of Wood FSC Certified (%) | L6: Sustainable Criteria Value ($) | N6: Percent of Product SAN Certified (%) | O6: Sustainable Criteria Value ($) | Q6: Percent Salvaged, Refurbished, or Reused (%) | R6: Sustainable Criteria Value ($) | T6: Closed Loop or Take Back Program | U6: Program Name or Manufacturer | V6: Sustainable Criteria Value ($) | X6: Certification Program | Y6: Sustainable Criteria Value ($) | AA6: Third Party Supply Chain Optimization | AB6: Sustainable Criteria Value ($) | AD6: Material Type | AE6: Meets Standard | AF6: Sustainable Criteria Value ($)
A8: =IF(E8>0,0,0) -> 0 | I8: =IF(G8+H8<=1,(E8*G8)+(E8*H8/2),"Exceeds 100%") -> 0 | L8: =K8*E8 -> 0 | O8: =IF(N8>0,N8*E8,0) -> 0 | R8: =Q8*E8 -> 0 | V8: =IF(T8="Yes",E8/2,0) -> 0 | Y8: =IF(OR(X8="GreenScreen List Translator",X8="Cradle to Cradle v3 Silver",X8="Cradle to Cradle v2 Gold",X8="REACH"),E8,IF(OR(X8="Full GreenScreen Assessment",X8="Cradle to Cradle v3 Gold",X8="Cradle to Cradle v3 Platinum",X8="Cradle to Cradle v2 Platinum"),E8*1.5,0)) -> 0 | AB8: =IF(AA8="Yes",E8,0) -> 0 | AF8: =IF(OR(ISBLANK(AD8),ISBLANK(AE8),AE8="No"),0,E8) -> 0 | AI8: =SUM(AF8,Y8,V8,R8,O8,L8,I8) -> 0 | AJ8: =IF(AH8>0,AI8+(AI8*AH8),AI8) -> 0
A9: =IF(E9>0,0,0) -> 0 | I9: =IF(G9+H9<=1,(E9*G9)+(E9*H9/2),"Exceeds 100%") -> 0 | L9: 0 | O9: =IF(N9>0,N9*E9,0) -> 0 | R9: =Q9*E9 -> 0 | V9: =IF(T9="Yes",E9/2,0) -> 0 | Y9: =IF(OR(X9="GreenScreen List Translator",X9="Cradle to Cradle v3 Silver",X9="Cradle to Cradle v2 Gold",X9="REACH"),E9,IF(OR(X9="Full GreenScreen Assessment",X9="Cradle to Cradle v3 Gold",X9="Cradle to Cradle v3 Platinum",X9="Cradle to Cradle v2 Platinum"),E9*1.5,0)) -> 0 | AB9: =IF(AA9="Yes",E9,0) -> 0 | AF9: =IF(OR(ISBLANK(AD9),ISBLANK(AE9),AE9="No"),0,E9) -> 0 | AI9: =SUM(AF9,Y9,V9,R9,O9,L9,I9) -> 0 | AJ9: =IF(AH9>0,AI9+(AI9*AH9),AI9) -> 0
A10: 0 | I10: 0 | L10: 0 | O10: 0 | R10: 0 | V10: 0 | Y10: 0 | AB10: 0 | AF10: 0 | AI10: 0 | AJ10: 0
A11: 0 | I11: 0 | L11: 0 | O11: 0 | R11: 0 | V11: 0 | Y11: 0 | AB11: 0 | AF11: 0 | AI11: 0 | AJ11: 0
A12: 0 | I12: 0 | L12: 0 | O12: 0 | R12: 0 | V12: 0 | Y12: 0 | AB12: 0 | AF12: 0 | AI12: 0 | AJ12: 0
A13: 0 | I13: 0 | L13: 0 | O13: 0 | R13: 0 | V13: 0 | Y13: 0 | AB13: 0 | AF13: 0 | AI13: 0 | AJ13: 0
A14: 0 | I14: 0 | L14: 0 | O14: 0 | R14: 0 | V14: 0 | Y14: 0 | AB14: 0 | AF14: 0 | AI14: 0 | AJ14: 0
A15: =IF(E15>0,0,0) -> 0 | I15: =IF(G15+H15<=1,(E15*G15)+(E15*H15/2),"Exceeds 100%") -> 0 | L15: =K15*E15 -> 0 | O15: =IF(N15>0,N15*E15,0) -> 0 | R15: =Q15*E15 -> 0 | V15: =IF(T15="Yes",E15/2,0) -> 0 | Y15: =IF(OR(X15="GreenScreen List Translator",X15="Cradle to Cradle v3 Silver",X15="Cradle to Cradle v2 Gold",X15="REACH"),E15,IF(OR(X15="Full GreenScreen Assessment",X15="Cradle to Cradle v3 Gold",X15="Cradle to Cradle v3 Platinum",X15="Cradle to Cradle v2 Platinum"),E15*1.5,0)) -> 0 | AB15: 0 | AF15: =IF(OR(ISBLANK(AD15),ISBLANK(AE15),AE15="No"),0,E15) -> 0 | AI15: =SUM(AF15,Y15,V15,R15,O15,L15,I15) -> 0 | AJ15: =IF(AH15>0,AI15+(AI15*AH15),AI15) -> 0
I16: 0 | L16: 0 | O16: 0 | R16: 0 | V16: 0 | Y16: 0 | AB16: 0 | AF16: 0 | AI16: 0 | AJ16: 0
I17: 0 | L17: 0 | O17: 0 | R17: 0 | V17: 0 | Y17: 0 | AB17: 0 | AF17: 0 | AI17: 0 | AJ17: 0
B18: Option 1. | C18: Total products and materials cost | E18: =SUMIF(B8:B17, "Products and Materials",E8:E17) -> 0 | G18: Recycled content products and materials value | I18: =SUMIF(B8:B17, "Products and Materials",I8:I17) -> 0 | K18: Wood products and materials value | L18: =SUMIF(B8:B17, "Products and Materials",L8:L17) -> 0 | N18: Bio-based products and materials value | O18: =SUMIF(B8:B17, "Products and Materials",O8:O17) -> 0 | Q18: Products reuse value | R18: =SUMIF(B8:B17, "Products and Materials",R8:R17) -> 0 | T18: Extended producer responsibility products and materials value | V18: =SUMIF(B8:B17, "Products and Materials",V8:V17) -> 0 | X18: Ingredient reporting product and materials value | Y18: =SUMIF(B8:B17, "Products and Materials",Y8:Y17) -> 0 | AA18: Supply chain optimization product and materials value | AB18: =SUMIF(E8:E17, "Products and Materials",AB8:AB17) -> 0 | AD18: Low emissions product and materials value | AF18: =SUMIF(B8:B17, "Products and Materials",AF8:AF17) -> 0 | AH18: Sustainable criteria value of products and materials | AI18: =SUMIF(B8:B17, "Products and Materials",AI8:AI17) -> 0 | AJ18: =SUMIF(B8:B17, "Products and Materials",AJ8:AJ17) -> 0
B19: Option 2. | C19: Total furniture cost | E19: =SUMIF(B8:B17, "Furniture",E8:E17) -> 0 | G19: Recycled content furniture value | I19: =SUMIF(B8:B17, "Furniture",I8:I17) -> 0 | K19: Wood furniture value | L19: =SUMIF(B8:B17, "Furniture",L8:L17) -> 0 | N19: Bio-based furniture cost value | O19: =SUMIF(B8:B17, "Furniture",O8:O17) -> 0 | Q19: Furniture reuse value | R19: =SUMIF(B8:B17, "Furniture",R8:R17) -> 0 | T19: Extended producer responsibility furniture value | V19: =SUMIF(B8:B17, "Furniture",V8:V17) -> 0 | X19: Ingredient reporting furniture cost value | Y19: =SUMIF(B8:B17, "Furniture",Y8:Y17) -> 0 | AA19: Supply chain optimization furniture value | AB19: =SUMIF(E8:E17, "Furniture",AB8:AB17) -> 0 | AD19: Low emissions furniture value | AF19: =SUMIF(B8:B17, "Furniture",AF8:AF17) -> 0 | AH19: Sustainable criteria value of furniture | AI19: =SUMIF(B8:B17, "Furniture",AI8:AI17) -> 0 | AJ19: =SUMIF(B8:B17, "Furniture",AJ8:AJ17) -> 0

Sheet Lamps
B2: Lamps
B5: Bulb General Type | C5: Bulb Specific Description or Code | D5: Quantity of Specific Bulb Type | E5: Mercury Content per Bulb (mg) | F5: Mean Light Output per Bulb Type (lumens) | G5: Rated Life per Bulb (hrs) | H5: Total Lumen Hours per Bulb | I5: Total Mercury Content per Bulb (picograms/lumen-hr) | K5: Mercury Content invalid range | L5: Cutsheets
A6: =IF(B6>=0,0,0) -> 0 | B6: Regular fluorescent | C6: PHIL 281535 F32T8TL835ALTO30PK | D6: 30 | E6: 1.7 | F6: 2950 | G6: 30000 | H6: =D6*F6*G6 -> 2655000000 | I6: =IF(AND(F6>0,G6>0),(E6/(F6*G6))*1000000000,0) -> 19.20903955 | K6: =IF(AND(OR(E6<0,E6>0.001),OR(E6<0.5,E6>300)),"ERROR","") ->  | L6: =IF(#REF!="Yes",1,0) -> 
A7: =IF(B7>=0,0,0) -> 0 | B7: HID | C7: PHIL 230821 F21T5835ALTO40PK | D7: 20 | E7: 1.4 | F7: 2100 | G7: 24000 | H7: =D7*F7*G7 -> 1008000000 | I7: =IF(AND(F7>0,G7>0),(E7/(F7*G7))*1000000000,0) -> 27.77777778 | K7: =IF(AND(OR(E7<0,E7>0.001),OR(E7<0.5,E7>300)),"ERROR","") ->  | L7: =IF(#REF!="Yes",1,0) -> 
A8: 0 | H8: 0 | I8: 0 | L8: =IF(#REF!="Yes",1,0) -> 
A9: 0 | H9: 0 | I9: 0 | L9: =IF(#REF!="Yes",1,0) -> 
A10: 0 | H10: 0 | I10: 0 | L10: =IF(#REF!="Yes",1,0) -> 
A11: 0 | H11: 0 | I11: 0 | L11: =IF(#REF!="Yes",1,0) -> 
A12: 0 | H12: 0 | I12: 0 | L12: =IF(#REF!="Yes",1,0) -> 
A13: 0 | H13: 0 | I13: 0 | L13: =IF(#REF!="Yes",1,0) -> 
A14: 0 | H14: 0 | I14: 0 | L14: =IF(#REF!="Yes",1,0) -> 
A15: 0 | H15: 0 | I15: 0 | K15: =IF(AND(OR(E15<0,E15>0.001),OR(E15<0.5,E15>300)),"ERROR","") ->  | L15: =IF(#REF!="Yes",1,0) -> 
A16: A | B16: Building maximum (picograms/lumen-hr) | I16: =MAX(I6:I15) -> 27.77777778

Sheet Summary
C3: Summary
C4: Note: All information on this tab is READ-ONLY. To edit, see the previous tabs.
C6: Total materials cost for the LEED project ($) | H6: =Instructions!H28 -> 18970.38
C8: MR Credit Purchasing - Ongoing
C10: Ongoing Consumables
C12: Total ongoing consumables cost | H12: =Instructions!H16 -> 4238.47
C14: Sustainable criteria value of ongoing consumables | H14: =Ongoing!Y81 -> 3132.6966
C16: Sustainable ongoing consumables as a percentage of total cost | H16: =IFERROR(H14/H12,0) -> 0.739110245 | K16: Must be at least 60%
C18: Electric-Powered Equipment
C20: Total electric-powered equipment cost | H20: =Instructions!H18 -> 12236
C22: Sustainable criteria value of electric-powered equipment | H22: =Ongoing!AB80 -> 12236
C24: Sustainable electric-powered equipment as a percentage of total cost | H24: =IFERROR(H22/H20,0) -> 1 | K24: Must be at least 40%
C26: MR Credit Purchasing - Facility Maintenance and Renovation
C28: Option 1. Products and Materials
C30: Total products and materials cost | H30: =Instructions!H24 -> 0
C32: Sustainable criteria value of facility maintenance and renovation products and materials | H32: ='Facility Maintenance'!AJ18 -> 0
C34: Sustainable facility maintenance and renovation products and materials as a percentage of total cost | H34: =IFERROR(H32/H30,0) -> 0 | K34: Must be at least 50%
C36: Option 2. Furniture
C38: Total furniture cost | H38: =Instructions!H26 -> 0
C40: Sustainable criteria value of facility maintenance and renovation furniture | H40: ='Facility Maintenance'!AJ19 -> 0
C42: Sustainable facility maintenance and renovation furniture as a percentage of total cost | H42: =IFERROR(H40/H38,0) -> 0 | K42: Must be at least 75%
C44: MR Credit Purchasing - Lamps
C46: Overall picograms per lumen-hr | H46: =Lamps!I16 -> 27.77777778 | K46: Must be 70 or less

Sheet Summary - Sch or Hos
C3: Summary for Existing Buildings: Schools and Hospitality
C4: Note: All information on this tab is READ-ONLY. To edit, see the previous tabs.
C6: Total materials cost for the LEED project | H6: =Instructions!H28 -> 18970.38
C8: MR Credit Purchasing - Ongoing
C10: Ongoing Consumables
C12: Total ongoing consumables cost | H12: =Instructions!H16 -> 4238.47
C14: Sustainable criteria value of ongoing consumables | H14: =Ongoing!Y81 -> 3132.6966
C16: Sustainable ongoing consumables as a percentage of total cost | H16: =IFERROR(H14/H12,0) -> 0.739110245 | K16: Must be at least 60%
C18: Electric-Powered Equipment
C20: Total electric-powered equipment cost | H20: =Instructions!H18 -> 12236
C22: Sustainable criteria value of electric-powered equipment | H22: =Ongoing!AB80 -> 12236
C24: Sustainable electric-powered equipment as a percentage of total cost | H24: =IFERROR(H22/H20,0) -> 1 | K24: Must be at least 40%
C26: Food and Beverage
C28: Total food and beverage cost | H28: =Instructions!H20 -> 2495.91
C30: Sustainable criteria value of food and beverage | H30: =Ongoing!Q80+Ongoing!N80 -> 277.22
C32: Sustainable food and beverage as a percentage of total cost | H32: =IFERROR(H30/H28,0) -> 0.11106971 | K32: Must be at least 25%
C34: MR Credit Purchasing - Facility Maintenance and Renovation
C36: Option 1. Products and Materials
C38: Total products and materials cost | H38: =Instructions!H24 -> 0
C40: Sustainable criteria value of facility maintenance and renovation products and materials | H40: ='Facility Maintenance'!AJ18 -> 0
C42: Sustainable facility maintenance and renovation products and materials as a percentage of total cost | H42: =IFERROR(H40/H38,0) -> 0 | K42: Must be at least 50%
C44: Option 2. Furniture
C46: Total furniture cost | H46: =Instructions!H26 -> 0
C48: Sustainable criteria value of facility maintenance and renovation furniture | H48: ='Facility Maintenance'!AJ19 -> 0
C50: Sustainable facility maintenance and renovation furniture as a percentage of total cost | H50: =IFERROR(H48/H46,0) -> 0 | K50: Must be at least 75%
C52: MR Credit Purchasing - Lamps
C54: Overall picograms per lumen-hr | H54: =Lamps!I23 -> 0 | K54: Must be 70 or less
